fUST/lending_fUST_20241119
["ID","MTS","AMOUNT","RATE_DAILY","PERIOD"]
[342606446,1731991634120,-400.0,0.00013833,2]
[342606447,1731991634143,-400.0,0.00013973,2]
[342606448,1731991634163,-183.310963,0.00014034,2]
[342606449,1731991634183,-300.0,0.0001546,2]
[342606450,1731991634204,-139.20128286,0.0001546,2]
[342606451,1731991643105,-160.79871714,0.0001546,2]
[342606452,1731991643129,-441.46196509,0.00015461,2]
[342606659,1731991832575,-203.773747,0.00014704,2]
[342606661,1731991832584,-455.694411,0.0001475,2]
[342606663,1731991832594,-189.48014421,0.00015306,2]
[342606665,1731991832603,-864.4123369,0.00015329,2]
[342606667,1731991832612,-300.0,0.0001546,2]
[342606669,1731991832622,-300.0,0.0001546,2]
[342606671,1731991832632,-24458.53803491,0.00015461,2]
[342606673,1731991832642,-3000.0,0.00015586,2]
[342606675,1731991832652,-785.4259463,0.00015743,2]
[342606677,1731991832661,-203.773747,0.00016074,2]
[342606679,1731991832670,-150.74703792,0.00016217,2]
[342606681,1731991832679,-4016.28831834,0.00016317,2]
[342606682,1731991832689,-1702.46617642,0.00016329,2]
[342607257,1731991838452,-7012.43181834,0.00016329,2]
[342607260,1731991838464,-246.27193588,0.00016329,2]
[342607262,1731991838475,-150.74703791,0.00016341,2]
[342607264,1731991838487,-150.0,0.00016366,2]
[342607267,1731991838501,-150.74703791,0.00016465,2]
[342607269,1731991838513,-150.74703791,0.00016589,2]
[342607271,1731991838525,-272.2860122,0.00016678,2]
[342607273,1731991838536,-304.334027,0.00016678,2]
[342607276,1731991838547,-304.334027,0.00016678,2]
[342607278,1731991838557,-306.0,0.000167,2]
[342607280,1731991838568,-150.74703791,0.00016713,2]
[342607282,1731991838582,-153.0,0.00016741,2]
[342607284,1731991838593,-153.0,0.00016741,2]
[342607287,1731991838605,-153.0,0.00016741,2]
[342607289,1731991838617,-500.0,0.00016773,2]
[342607291,1731991838629,-500.0,0.00016773,2]
[342607293,1731991838641,-500.0,0.00016773,2]
[342607294,1731991838652,-501.36306297,0.00016773,2]
[342607295,1731991838665,-501.6459443,0.00016773,2]
[342607296,1731991838678,-500.0,0.00016784,2]
[342607297,1731991838690,-500.0,0.00016784,2]
[342607298,1731991838704,-500.0,0.00016784,2]
[342607299,1731991838719,-500.0,0.00016784,2]
[342607300,1731991838730,-293.68352576,0.00016784,2]
[342607301,1731991838740,-535.17289255,0.00016784,2]
[342607302,1731991838751,-500.0,0.00016784,2]
[342607303,1731991838762,-222.97718663,0.00016784,2]
[342607304,1731991838774,-500.0,0.00016784,2]
[342607305,1731991838787,-500.0,0.00016784,2]
[342607306,1731991838801,-500.0,0.00016784,2]
[342607307,1731991838813,-500.0,0.00016784,2]
[342607309,1731991838827,-500.0,0.00016784,2]
[342607311,1731991838837,-500.0,0.00016784,2]
[342607313,1731991838847,-500.0,0.00016784,2]
[342607315,1731991838859,-500.0,0.00016784,2]
[342607317,1731991838872,-500.0,0.00016784,2]
[342607319,1731991838882,-500.0,0.00016784,2]
[342607322,1731991838896,-500.0,0.00016784,2]
[342607324,1731991838907,-500.0,0.00016784,2]
[342607326,1731991838918,-500.0,0.00016784,2]
[342607328,1731991838928,-500.0,0.00016784,2]
[342607331,1731991838940,-500.0,0.00016784,2]
[342607333,1731991838951,-500.0,0.00016784,2]
[342607335,1731991838963,-500.0,0.00016784,2]
[342607337,1731991838974,-500.0,0.00016784,2]
[342607339,1731991838985,-500.0,0.00016784,2]
[342607342,1731991838999,-500.0,0.00016784,2]
[342607344,1731991839011,-500.0,0.00016784,2]
[342607346,1731991839022,-500.0,0.00016784,2]
[342607348,1731991839033,-500.0,0.00016784,2]
[342607350,1731991839044,-500.0,0.00016784,2]
[342607353,1731991839055,-500.0,0.00016784,2]
[342607355,1731991839067,-500.0,0.00016784,2]
[342607357,1731991839081,-500.0,0.00016784,2]
[342607359,1731991839098,-500.0,0.00016784,2]
[342607361,1731991839109,-500.0,0.00016784,2]
[342607364,1731991839120,-500.0,0.00016784,2]
[342607366,1731991839131,-500.0,0.00016784,2]
[342607368,1731991839143,-500.0,0.00016784,2]
[342607370,1731991839154,-500.0,0.00016784,2]
[342607372,1731991839165,-500.0,0.00016784,2]
[342607375,1731991839178,-500.0,0.00016784,2]
[342607377,1731991839189,-500.0,0.00016784,2]
[342607379,1731991839200,-500.0,0.00016784,2]
[342607381,1731991839211,-500.0,0.00016784,2]
[342607383,1731991839223,-500.0,0.00016784,2]
[342607386,1731991839234,-500.0,0.00016784,2]
[342607388,1731991839245,-500.0,0.00016784,2]
[342607390,1731991839257,-500.0,0.00016784,2]
[342607392,1731991839268,-500.0,0.00016784,2]
[342607394,1731991839280,-500.0,0.00016784,2]
[342607396,1731991839291,-500.0,0.00016784,2]
[342607399,1731991839303,-500.0,0.00016784,2]
[342607401,1731991839315,-500.0,0.00016784,2]
[342607403,1731991839329,-500.0,0.00016784,2]
[342607405,1731991839341,-500.0,0.00016784,2]
[342607408,1731991839352,-500.0,0.00016784,2]
[342607410,1731991839362,-500.0,0.00016784,2]
[342607412,1731991839374,-483.60384476,0.00016784,2]
[342607414,1731991839386,-500.0,0.00016784,2]
[342607416,1731991839397,-500.0,0.00016784,2]
[342607419,1731991839409,-500.0,0.00016784,2]
[342607421,1731991839420,-500.0,0.00016784,2]
[342607423,1731991839432,-500.0,0.00016784,2]
[342607425,1731991839443,-544.00675452,0.00016784,2]
[342607427,1731991839454,-500.0,0.00016784,2]
[342607430,1731991839465,-500.0,0.00016784,2]
[342607449,1731991839640,-500.0,0.00016784,2]
[342607452,1731991839651,-500.0,0.00016784,2]
[342607454,1731991839660,-500.0,0.00016784,2]
[342607456,1731991839671,-500.0,0.00016784,2]
[342607458,1731991839680,-500.0,0.00016784,2]
[342607461,1731991839690,-500.0,0.00016784,2]
[342607464,1731991839700,-500.0,0.00016784,2]
[342607466,1731991839713,-500.0,0.00016784,2]
[342607468,1731991839722,-500.0,0.00016784,2]
[342607470,1731991839731,-151.0,0.00016786,2]
[342607472,1731991839741,-4027.975843,0.00016787,2]
[342607474,1731991839751,-4027.975843,0.00016787,2]
[342607476,1731991839759,-151.0,0.00016787,2]
[342607478,1731991839768,-217.401081,0.00016787,2]
[342607480,1731991839778,-217.401081,0.00016787,2]
[342607482,1731991839788,-156.826,0.00016792,2]
[342607485,1731991839799,-151.0,0.00016798,2]
[342607488,1731991839808,-151.0,0.00016798,2]
[342607490,1731991839817,-151.0,0.00016798,2]
[342607492,1731991839828,-151.0,0.00016798,2]
[342607494,1731991839837,-151.0,0.00016798,2]
[342607496,1731991839846,-151.0,0.00016798,2]
[342607498,1731991839855,-183.749512,0.00016798,2]
[342607500,1731991839865,-183.749512,0.00016798,2]
[342607502,1731991839874,-183.749512,0.00016798,2]
[342607504,1731991839883,-183.749512,0.00016798,2]
[342607506,1731991839892,-183.749512,0.00016798,2]
[342607508,1731991839901,-183.749512,0.00016798,2]
[342607510,1731991839911,-151.0,0.00016798,2]
[342607512,1731991839920,-306.199016,0.00016798,2]
[342607514,1731991839930,-151.412508,0.00016798,2]
[342607516,1731991839939,-306.199016,0.00016798,2]
[342607518,1731991839949,-151.0,0.00016798,2]
[342607520,1731991839959,-151.0,0.00016798,2]
[342607522,1731991839968,-153.415636,0.00016798,2]
[342607524,1731991839978,-2210.968549,0.00016798,2]
[342607526,1731991839988,-2210.968549,0.00016798,2]
[342607528,1731991839997,-151.0,0.00016798,2]
[342607530,1731991840006,-151.0,0.00016798,2]
[342607532,1731991840016,-151.0,0.00016798,2]
[342607534,1731991840026,-385.837888,0.00016798,2]
[342607536,1731991840035,-385.837888,0.00016798,2]
[342607538,1731991840044,-1869.33087,0.00016798,2]
[342607540,1731991840054,-151.0,0.00016798,2]
[342607542,1731991840063,-1869.33087,0.00016798,2]
[342607544,1731991840072,-151.0,0.00016798,2]
[342607546,1731991840084,-151.0,0.00016798,2]
[342607548,1731991840093,-322.428007,0.00016798,2]
[342607550,1731991840102,-322.428007,0.00016798,2]
[342607552,1731991840112,-2764.130669,0.00016798,2]
[342607554,1731991840122,-2764.130669,0.00016798,2]
[342607556,1731991840132,-151.0,0.00016798,2]
[342607558,1731991840141,-152.623451,0.00016798,2]
[342607560,1731991840151,-151.0,0.00016798,2]
[342607562,1731991840161,-151.0,0.00016798,2]
[342607564,1731991840170,-213.969757,0.00016798,2]
[342607566,1731991840180,-213.969757,0.00016798,2]
[342607568,1731991840189,-213.969757,0.00016798,2]
[342607570,1731991840199,-213.969757,0.00016798,2]
[342607572,1731991840208,-151.0,0.00016798,2]
[342607574,1731991840217,-151.0,0.00016798,2]
[342607576,1731991840227,-163.76732,0.00016798,2]
[342607578,1731991840236,-163.76732,0.00016798,2]
[342607580,1731991840245,-163.76732,0.00016798,2]
[342607582,1731991840254,-163.76732,0.00016798,2]
[342607584,1731991840263,-740.075109,0.00016798,2]
[342607586,1731991840273,-740.075109,0.00016798,2]
[342607588,1731991840282,-740.075109,0.00016798,2]
[342607590,1731991840291,-740.075109,0.00016798,2]
[342607592,1731991840300,-151.0,0.00016798,2]
[342607594,1731991840310,-151.0,0.00016798,2]
[342607596,1731991840319,-2148.053281,0.00016798,2]
[342607598,1731991840331,-2148.053281,0.00016798,2]
[342607600,1731991840340,-2148.053281,0.00016798,2]
[342607602,1731991840350,-2148.053281,0.00016798,2]
[342607604,1731991840359,-256.658174,0.00016798,2]
[342607606,1731991840368,-256.658174,0.00016798,2]
[342607608,1731991840377,-171.658,0.00016798,2]
[342607610,1731991840387,-171.658,0.00016798,2]
[342607612,1731991840396,-256.658174,0.00016798,2]
[342607614,1731991840405,-256.658174,0.00016798,2]
[342607616,1731991840414,-171.658,0.00016798,2]
[342607618,1731991840424,-171.658,0.00016798,2]
[342607620,1731991840433,-226.814094,0.00016798,2]
[342607622,1731991840442,-226.814094,0.00016798,2]
[342607624,1731991840451,-226.814094,0.00016798,2]
[342607626,1731991840461,-226.814094,0.00016798,2]
[342607628,1731991840470,-483.07506,0.00016798,2]
[342607630,1731991840479,-483.07506,0.00016798,2]
[342607632,1731991840488,-483.07506,0.00016798,2]
[342607635,1731991840498,-483.07506,0.00016798,2]
[342607638,1731991840507,-3087.873737,0.00016798,2]
[342607640,1731991840517,-3087.873737,0.00016798,2]
[342607642,1731991840526,-3087.873737,0.00016798,2]
[342607644,1731991840535,-3087.873737,0.00016798,2]
[342607646,1731991840544,-151.0,0.00016798,2]
[342607648,1731991840553,-151.0,0.00016798,2]
[342607650,1731991840562,-154.381235,0.00016798,2]
[342607652,1731991840571,-703.6083,0.00016798,2]
[342607654,1731991840582,-703.6083,0.00016798,2]
[342607656,1731991840592,-703.6083,0.00016798,2]
[342607658,1731991840601,-703.6083,0.00016798,2]
[342607660,1731991840610,-151.0,0.00016798,2]
[342607662,1731991840619,-151.0,0.00016798,2]
[342607664,1731991840628,-151.0,0.00016798,2]
[342607666,1731991840637,-151.0,0.00016798,2]
[342607668,1731991840646,-914.282031,0.00016798,2]
[342607670,1731991840655,-914.282031,0.00016798,2]
[342607672,1731991840665,-914.282031,0.00016798,2]
[342607674,1731991840674,-914.282031,0.00016798,2]
[342607676,1731991840684,-914.282031,0.00016798,2]
[342607678,1731991840693,-914.282031,0.00016798,2]
[342607680,1731991840702,-914.282031,0.00016798,2]
[342607682,1731991840714,-914.282031,0.00016798,2]
[342607684,1731991840723,-421.115362,0.00016798,2]
[342607686,1731991840732,-421.115362,0.00016798,2]
[342607688,1731991840741,-421.115362,0.00016798,2]
[342607690,1731991840751,-421.115362,0.00016798,2]
[342607692,1731991840760,-421.115362,0.00016798,2]
[342607694,1731991840769,-421.115362,0.00016798,2]
[342607696,1731991840778,-421.115362,0.00016798,2]
[342607698,1731991840788,-421.115362,0.00016798,2]
[342607700,1731991840798,-164.364917,0.00016798,2]
[342607702,1731991840807,-164.364917,0.00016798,2]
[342607704,1731991840816,-164.364917,0.00016798,2]
[342607706,1731991840826,-164.364917,0.00016798,2]
[342607708,1731991840835,-627.3509287,0.00016798,2]
[342607709,1731991840883,-66.91785358,0.00016798,2]
[342607710,1731991840895,-582.41753839,0.00016798,2]
[342607711,1731991840907,-2364.23238533,0.00016798,2]
[342607712,1731991840916,-3640.918706,0.00016798,2]
[342607713,1731991840925,-3640.918706,0.00016798,2]
[342607714,1731991840935,-3640.918706,0.00016798,2]
[342607715,1731991840944,-702.914651,0.00016798,2]
[342607716,1731991840953,-702.914651,0.00016798,2]
[342607717,1731991840962,-702.914651,0.00016798,2]
[342607718,1731991840971,-702.914651,0.00016798,2]
[342607719,1731991840980,-702.914651,0.00016798,2]
[342607720,1731991840989,-702.914651,0.00016798,2]
[342607721,1731991840999,-702.914651,0.00016798,2]
[342607722,1731991841008,-702.914651,0.00016798,2]
[342607723,1731991841017,-151.0,0.00016798,2]
[342607724,1731991841026,-151.0,0.00016798,2]
[342607725,1731991841036,-151.0,0.00016798,2]
[342607726,1731991841045,-151.0,0.00016798,2]
[342607727,1731991841054,-151.0,0.00016798,2]
[342607728,1731991841063,-151.0,0.00016798,2]
[342607729,1731991841072,-240.575846,0.00016798,2]
[342607730,1731991841083,-4027.975843,0.00016798,2]
[342607731,1731991841092,-4027.975843,0.00016798,2]
[342607732,1731991841103,-4027.975843,0.00016798,2]
[342607733,1731991841112,-4027.975843,0.00016798,2]
[342607734,1731991841121,-4027.975843,0.00016798,2]
[342607735,1731991841131,-4027.975843,0.00016798,2]
[342607737,1731991841140,-4027.975843,0.00016798,2]
[342607739,1731991841150,-4027.975843,0.00016798,2]
[342607741,1731991841159,-159.358796,0.00016798,2]
[342607743,1731991841168,-630.464397,0.00016798,2]
[342607745,1731991841179,-630.464397,0.00016798,2]
[342607746,1731991841188,-630.464397,0.00016798,2]
[342607747,1731991841198,-630.464397,0.00016798,2]
[342607748,1731991841207,-630.464397,0.00016798,2]
[342607749,1731991841216,-630.464397,0.00016798,2]
[342607750,1731991841226,-630.464397,0.00016798,2]
[342607751,1731991841236,-630.464397,0.00016798,2]
[342607752,1731991841246,-217.401081,0.00016798,2]
[342607753,1731991841255,-217.401081,0.00016798,2]
[342607754,1731991841265,-217.401081,0.00016798,2]
[342607755,1731991841274,-90.93254419,0.00016798,2]
[342607779,1731991843205,-195.17594,0.00016787,2]
[342607780,1731991843216,-126.46853681,0.00016798,2]
[342607781,1731991843225,-217.401081,0.00016798,2]
[342607782,1731991843236,-217.401081,0.00016798,2]
[342607783,1731991843246,-207.48213519,0.00016798,2]
[342607784,1731991843261,-9.91894581,0.00016798,2]
[342607785,1731991843271,-217.401081,0.00016798,2]
[342607786,1731991843280,-532.445794,0.00016798,2]
[342607787,1731991843289,-430.62046555,0.00016798,2]
[342607828,1731991846427,-101.82532845,0.00016798,2]
[342607829,1731991846437,-532.445794,0.00016798,2]
[342607830,1731991846446,-532.445794,0.00016798,2]
[342607831,1731991846455,-532.445794,0.00016798,2]
[342607832,1731991846465,-532.445794,0.00016798,2]
[342607833,1731991846474,-532.445794,0.00016798,2]
[342607834,1731991846484,-532.445794,0.00016798,2]
[342607835,1731991846494,-151.0,0.00016798,2]
[342607836,1731991846503,-151.0,0.00016798,2]
[342607837,1731991846513,-151.0,0.00016798,2]
[342607838,1731991846523,-164.62561608,0.00016798,2]
[342607866,1731992846262,-400.0,0.00013155,2]
[342607867,1731992846284,-400.0,0.00013288,2]
[342607868,1731992846305,-327.03926443,0.00013973,2]
[342607878,1731992952109,-400.0,0.00012893,2]
[342607879,1731992952133,-362.6654,0.00013023,2]
[342607899,1731993032661,-37.3346,0.00013023,2]
[342607901,1731993032672,-400.0,0.00013973,2]
[342607902,1731993032683,-380.71121,0.00014,2]
[342607903,1731993032696,-17467.35034,0.00014,2]
[342608387,1731993043430,-1107.02413344,0.00013721,2]
[342608394,1731993043539,-833.4348201,0.00013721,2]
[342608707,1731993046578,-186.6820724,0.00013491,2]
[342608709,1731993046588,-614.47055317,0.00013721,2]
[342608711,1731993046598,-4228.88893824,0.0001386,2]
[342608713,1731993046608,-7432.64966,0.00014,2]
[342608715,1731993046618,-1261.14498166,0.00014167,2]
[342610064,1731993163527,215.67,6.03e-05,2]
[342610069,1731994049137,-386.35087893,0.00010741,2]
[342610070,1731994049159,-386.35087893,0.00010849,2]
[342610071,1731994049181,-141.7249385,0.00010866,2]
[342610081,1731994149098,-2858.2750615,0.00010757,2]
[342610082,1731994149120,-160.9053711,0.00010786,2]
[342610083,1731994149140,-2858.2750615,0.00010866,2]
[342610084,1731994149160,-384.2306696,0.00010886,2]
[342610085,1731994149180,-753.14,0.00010959,2]
[342610086,1731994149202,-300.0,0.00011131,2]
[342610087,1731994149225,-6880.3367496,0.00011132,2]
[342610088,1731994149246,-24900.0,0.00012117,2]
[342610089,1731994149265,-7812.41855729,0.00012198,2]
[342610101,1731994156112,-381.57543251,0.00012198,2]
[342610102,1731994156134,-420.0,0.00012244,2]
[342610103,1731994156157,-283.06226934,0.00012693,2]
[342610104,1731994156178,-351.47151888,0.000129,2]
[342610105,1731994156198,-287.64915197,0.000129,2]
[342610106,1731994160129,-200.05056077,0.00012076,2]
[342610114,1731994196151,35427.21,6e-05,2]
[342610240,1731994233131,-181.52487174,0.00012076,2]
[342610243,1731994233142,-63.82236687,0.000129,2]
[342610245,1731994233152,-300.37571044,0.00013419,2]
[342610364,1731994238931,-51.0958084,0.00013419,2]
[342610366,1731994238941,-300.0,0.00013697,2]
[342610368,1731994238950,-171.0325078,0.00013699,2]
[342610370,1731994238959,-343.219611,0.00013699,2]
[342610372,1731994238969,-1170.53987485,0.00013699,2]
[342610374,1731994238978,-2031.226887,0.00013699,2]
[342610376,1731994238987,-2031.226887,0.00013699,2]
[342610378,1731994238996,-189.196554,0.00013699,2]
[342610380,1731994239006,-189.196554,0.00013699,2]
[342610382,1731994239015,-502.7829048,0.000137,2]
[342610384,1731994239026,-419.11783091,0.000137,2]
[342610387,1731994239036,-500.0,0.000137,2]
[342610389,1731994239046,-500.0,0.000137,2]
[342610392,1731994239055,-150.0,0.00013772,2]
[342610394,1731994239065,-9361.89507817,0.00013824,2]
[342610396,1731994239074,-1236.2636384,0.00013852,2]
[342610399,1731994239084,-400.0,0.00013973,2]
[342610401,1731994239093,-351.47151884,0.0001408,2]
[342610403,1731994239102,-273.75702687,0.00014167,2]
[342610405,1731994239111,-357.74676665,0.00014167,2]
[342610407,1731994239120,-2031.226887,0.00014167,2]
[342610409,1731994239130,-2031.226887,0.00014167,2]
[342610411,1731994239139,-189.196554,0.00014167,2]
[342610413,1731994239148,-189.196554,0.00014167,2]
[342610415,1731994239157,-151.0,0.00014167,2]
[342610417,1731994239166,-1000.0,0.00014248,2]
[342610419,1731994239177,-1000.0,0.00014248,2]
[342610421,1731994239186,-351.47151884,0.0001474,2]
[342610423,1731994239196,-420.0,0.00015067,2]
[342610425,1731994239205,-1500.0,0.0001525,2]
[342610427,1731994239214,-1500.0,0.0001525,2]
[342610429,1731994239223,-207.17991942,0.00015371,2]
[342610431,1731994239233,-500.0,0.00015381,2]
[342610433,1731994239243,-500.0,0.00015381,2]
[342610435,1731994239252,-500.0,0.00015381,2]
[342610437,1731994239262,-500.0,0.00015381,2]
[342610439,1731994239271,-615.92286775,0.00015381,2]
[342610441,1731994239281,-500.0,0.00015381,2]
[342610443,1731994239290,-500.0,0.00015381,2]
[342610445,1731994239300,-500.0,0.00015381,2]
[342610447,1731994239309,-500.0,0.00015381,2]
[342610449,1731994239318,-500.0,0.00015381,2]
[342610451,1731994239328,-500.0,0.00015381,2]
[342610453,1731994239338,-500.0,0.00015381,2]
[342610455,1731994239347,-500.0,0.00015381,2]
[342610457,1731994239356,-500.0,0.00015381,2]
[342610459,1731994239366,-500.0,0.00015381,2]
[342610461,1731994239375,-500.0,0.00015381,2]
[342610463,1731994239385,-395.21660212,0.00015381,2]
[342610465,1731994239394,-500.0,0.00015381,2]
[342610467,1731994239404,-500.0,0.00015381,2]
[342610470,1731994239414,-500.0,0.00015381,2]
[342610472,1731994239425,-500.0,0.00015381,2]
[342610473,1731994239434,-500.0,0.00015381,2]
[342610476,1731994239444,-500.0,0.00015381,2]
[342610478,1731994239454,-500.0,0.00015381,2]
[342610480,1731994239468,-500.0,0.00015381,2]
[342610482,1731994239477,-408.93575849,0.00015381,2]
[342610484,1731994239487,-500.0,0.00015381,2]
[342610486,1731994239496,-500.0,0.00015381,2]
[342610488,1731994239506,-500.0,0.00015381,2]
[342610490,1731994239515,-500.0,0.00015381,2]
[342610492,1731994239524,-500.0,0.00015381,2]
[342610494,1731994239536,-500.0,0.00015381,2]
[342610496,1731994239545,-648.42481694,0.00015381,2]
[342610498,1731994239555,-500.0,0.00015381,2]
[342610500,1731994239564,-500.0,0.00015381,2]
[342610502,1731994239573,-500.0,0.00015381,2]
[342610504,1731994239582,-500.0,0.00015381,2]
[342610506,1731994239592,-500.0,0.00015381,2]
[342610508,1731994239601,-500.0,0.00015381,2]
[342610511,1731994239611,-500.0,0.00015381,2]
[342610513,1731994239620,-500.0,0.00015381,2]
[342610515,1731994239629,-500.0,0.00015381,2]
[342610517,1731994239638,-500.0,0.00015381,2]
[342610519,1731994239647,-500.0,0.00015381,2]
[342610521,1731994239656,-500.0,0.00015381,2]
[342610523,1731994239665,-500.0,0.00015381,2]
[342610525,1731994239675,-500.0,0.00015381,2]
[342610527,1731994239685,-500.0,0.00015381,2]
[342610529,1731994239694,-500.0,0.00015381,2]
[342610544,1731994239826,-500.0,0.00015381,2]
[342610547,1731994239836,-153.0,0.00015382,2]
[342610549,1731994239846,-153.0,0.00015382,2]
[342610551,1731994239855,-153.0,0.00015382,2]
[342610553,1731994239864,-153.0,0.00015382,2]
[342610555,1731994239875,-153.0,0.00015382,2]
[342610557,1731994239884,-153.0,0.00015382,2]
[342610559,1731994239894,-153.0,0.00015382,2]
[342610561,1731994239903,-153.0,0.00015382,2]
[342610563,1731994239912,-458.4338077,0.00015382,2]
[342610565,1731994239922,-351.47151884,0.00015401,2]
[342610567,1731994239931,-153.0,0.00015441,2]
[342610569,1731994239941,-153.0,0.00015441,2]
[342610571,1731994239950,-212.4704441,0.00015456,2]
[342610573,1731994239960,-218.8422122,0.00015456,2]
[342610575,1731994239971,-212.4704441,0.00015556,2]
[342610577,1731994239980,-285.3337793,0.00016,2]
[342610579,1731994239989,-314.1649161,0.00016,2]
[342610581,1731994239999,-212.4704441,0.00016,2]
[342610583,1731994240008,-212.4704441,0.00016,2]
[342610585,1731994240018,-304.334027,0.00016,2]
[342610587,1731994240028,-212.4704441,0.00016,2]
[342610589,1731994240037,-212.4704441,0.00016,2]
[342610591,1731994240046,-212.4704441,0.00016,2]
[342610593,1731994240055,-221.5807463,0.00016,2]
[342610596,1731994240065,-351.47151884,0.00016061,2]
[342610598,1731994240074,-1176.85752613,0.00016402,2]
[342610600,1731994240084,-1989.871694,0.00016451,2]
[342610602,1731994240094,-1989.871694,0.00016451,2]
[342610604,1731994240104,-2031.226887,0.00016451,2]
[342610606,1731994240114,-151.0,0.00016451,2]
[342610608,1731994240123,-2031.226887,0.00016451,2]
[342610610,1731994240133,-151.0,0.00016451,2]
[342610612,1731994240144,-189.196554,0.00016451,2]
[342610614,1731994240153,-189.196554,0.00016451,2]
[342610616,1731994240162,-151.0,0.00016451,2]
[342610619,1731994240172,-620.583049,0.00016469,2]
[342610621,1731994240181,-620.583049,0.00016469,2]
[342610623,1731994240191,-2518.353221,0.00016469,2]
[342610625,1731994240200,-2518.353221,0.00016469,2]
[342610627,1731994240209,-151.0,0.00016469,2]
[342610629,1731994240218,-2322.05591036,0.00016469,2]
[342610631,1731994240227,-1176.8575261,0.0001648,2]
[342610633,1731994240237,-152.571761,0.00016502,2]
[342610636,1731994240247,-1682.397783,0.00016502,2]
[342610638,1731994240256,-151.0,0.00016502,2]
[342610640,1731994240266,-1682.397783,0.00016502,2]
[342610642,1731994240275,-592.060087,0.00016502,2]
[342610644,1731994240284,-592.060087,0.00016502,2]
[342610646,1731994240294,-252.669218,0.00016502,2]
[342610648,1731994240303,-252.669218,0.00016502,2]
[342610650,1731994240313,-171.175806,0.00016502,2]
[342610652,1731994240323,-171.175806,0.00016502,2]
[342610654,1731994240333,-181.451275,0.00016502,2]
[342610656,1731994240342,-181.451275,0.00016502,2]
[342610658,1731994240351,-205.326539,0.00016502,2]
[342610660,1731994240361,-205.326539,0.00016502,2]
[342610662,1731994240370,-620.583049,0.00016502,2]
[342610664,1731994240379,-620.583049,0.00016502,2]
[342610666,1731994240389,-2518.353221,0.00016502,2]
[342610668,1731994240398,-2518.353221,0.00016502,2]
[342610670,1731994240408,-151.0,0.00016502,2]
[342610672,1731994240417,-161.72063,0.00016502,2]
[342610675,1731994240433,-161.72063,0.00016502,2]
[342610677,1731994240442,-2470.29899,0.00016502,2]
[342610679,1731994240451,-2470.29899,0.00016502,2]
[342610681,1731994240464,-2031.226887,0.00016502,2]
[342610683,1731994240474,-2031.226887,0.00016502,2]
[342610685,1731994240483,-189.196554,0.00016502,2]
[342610686,1731994240492,-189.196554,0.00016502,2]
[342610689,1731994240502,-151.0,0.00016502,2]
[342610690,1731994240512,-2912.734965,0.00016502,2]
[342610692,1731994240521,-2912.734965,0.00016502,2]
[342610694,1731994240532,-502.73333646,0.00016547,2]
[342610696,1731994240543,-1504.63243929,0.00016547,2]
[342610699,1731994240553,-1176.8575261,0.00016558,2]
[342610701,1731994240563,-151.0,0.00016569,2]
[342610703,1731994240572,-439.901546,0.00016569,2]
[342610705,1731994240582,-439.901546,0.00016569,2]
[342610707,1731994240591,-522.506543,0.00016569,2]
[342610709,1731994240601,-522.506543,0.00016569,2]
[342610711,1731994240612,-587.0,0.00016573,2]
[342610713,1731994240621,-151.0,0.00016635,2]
[342610715,1731994240632,-1176.8575261,0.00016635,2]